[Event "CIS Master Groups 2024"]
[Site "Vasto"]
[Date "2024.04.11"]
[Round "6.1"]
[White "Predke, Alexandr"]
[Black "Eljanov, Pavel"]
[Result "1-0"]
[ECO "C50"]
[WhiteElo "2673"]
[BlackElo "2706"]
[Annotator "TA"]
[PlyCount "169"]
[EventDate "2024.04.07"]
[EventType "team-tourn"]
[EventCountry "ITA"]
[SourceTitle "playchess.com"]
[Source "ChessBase"]
[SourceQuality "1"]
[TimeControl "40/5400+30:900+30"]

{[%evp 10,169,-39,-25,-39,-29,-31,-31,0,0,0,0,0,0,0,0,0,0,0,0,0,0,0,5,14,0,0,0,16,0,37,0,51,33,34,35,38,38,55,45,89,37,50,46,52,42,51,45,45,46,54,47,61,82,117,127,126,106,121,125,247,269,250,138,143,166,131,2,27,0,8,0,0,0,0,0,0,0,0,0,1,0,0,0,0,0,92,93,85,89,69,69,80,43,248,250,254,250,247,237,234,218,220,16,39,0,0,0,0,0,0,0,0,0,0,0,0,0,0,0,0,0,0,0,0,0,0,0,0,0,28,29,0,0,31,33,33,8,29971,29972,29978,29979,29980,29981,29981,29982,29967,29969,29969,29967,29970,0,29966,29967,29980,29981,29984,29985,29985,29984,29984,29985]} 1. e4 {[%emt 0:00:53]} e5 {[%emt 0:00:07]} 2. Nf3 {[%emt 0:00:04]} Nc6 {[%emt 0:00:04]} 3. Bc4 {[%emt 0:00:06]} Bc5 {[%emt 0:00:25]} 4. O-O {[%emt 0:00:07]} Nf6 {[%emt 0:00:35]} 5. d4 {[%emt 0:00:05]} Bxd4 {[%emt 0:00:30]} 6. Nxd4 {[%emt 0:00:06]} Nxd4 {[%emt 0:00:04]} 7. Be3 {[%emt 0:00:05]} Nc6 {[%emt 0:10:55][%cal Oe8g8]} 8. f4 {[%emt 0:00:19][%cal Oc4f7]} exf4 {[%emt 0:02:51] Black is slightly better.} 9. Bxf4 {[%emt 0:00:22] Threatens to win with e5. This pair of bishops is nice.} d6 {[%emt 0:00:10][%cal Oh7h6]} 10. Bb5 {[%emt 0:00:38]} Bd7 {[%emt 0:11:15]} 11. Bg5 {[%emt 0:00:46]} Ne5 {[%emt 0:05:41]} 12. Bxf6 {[%emt 0:05:37]} gxf6 {[%emt 0:00:06]} 13. Bxd7+ {[%emt 0:03:54]} Qxd7 {[%emt 0:02:07]} 14. Nc3 {[%emt 0:00:14][%cal Od1d4,Bb1c3,Bc3d5,Bd5f6][%mdl 32]} O-O-O {[%emt 0:03:58]} 15. Nd5 {[%emt 0:00:38]} h5 {[%emt 0:05:17]} 16. Qd4 {[%emt 0:04:37]} Kb8 {[%emt 0:00:43]} 17. Nxf6 {[%emt 0:02:52]} Qc6 {[%emt 0:01:53]} 18. c3 {[%emt 0:02:35]} h4 {[%emt 0:06:15]} 19. h3 {[%emt 0:00:28]} Rh6 {[%emt 0:07:12][%cal Bh8h6,Bh6g6,Bg6g3][%mdl 32]} 20. Rf5 {[%emt 0:00:40]} Qb5 {[%emt 0:09:59]} (20... Rc8 $11) 21. Rd1 {[%emt 0:04:51]} Rc8 {[%emt 0:10:29]} (21... Qxb2 $2 22. Qxe5 Qxa2 23. Qd4 $18) 22. b3 {[%emt 0:03:37]} Rg6 {[%emt 0:01:25]} 23. Rd2 {[%emt 0:06:03] Prevents Qe2.} b6 {[%emt 0:06:11]} 24. c4 {[%emt 0:05:31]} Qc6 {[%emt 0:00:12]} 25. Qf2 {[%emt 0:09:59]} (25. Rxe5 $1 $16 Rxf6 (25... dxe5 $2 26. Nd7+ Kb7 27. Nxe5 $18) 26. Re7) 25... Rg3 $14 {[%emt 0:03:13]} 26. Rd5 $36 {[%emt 0:00:55][%mdl 2048] White has some pressure.} Rh8 {[%emt 0:01:12]} 27. Nh5 {[%emt 0:09:18]} Rg6 {[%emt 0:00:24]} 28. Qxh4 {[%emt 0:03:05]} Rhg8 {[%emt 0:04:37]} 29. g3 {[%emt 0:00:06]} a6 {[%emt 0:01:19][%cal Ba7a6,Ba6a5][%mdl 32]} 30. Qf4 {[%emt 0:02:21]} Kb7 {[%emt 0:01:50]} 31. Kh2 {[%emt 0:00:51]} a5 {[%emt 0:01:46]} 32. a4 {[%emt 0:00:38]} Rh8 {[%emt 0:01:06]} 33. Nf6 $1 {[%emt 0:01:37] Prevents Qe8.} Rhh6 {[%emt 0:00:44]} 34. Kg2 $1 {[%emt 0:01:26]} Rh8 {[%emt 0:00:27]} (34... Ka6 $16 {was necessary.} 35. h4 Rh8) 35. h4 $18 {[%emt 0:00:55]} Rgh6 {[%emt 0:01:49]} 36. h5 {[%emt 0:02:49] Wards off Ng6} (36. Ng4 $18 Nxg4 37. Qxg4) 36... Rxf6 $16 {[%emt 0:00:48]} 37. Rxf6 {[%emt 0:00:04]} Rxh5 {[%emt 0:00:04]} 38. Rh6 {[%emt 0:04:24] Inhibits Qe8.} (38. Rxf7 $16 {And now Re7 would win.} Qe8 39. Rf8) 38... Ng6 $11 {[%emt 0:01:09]} 39. Rxg6 {[%emt 0:10:45]} (39. Qxf7 Rxh6 40. Qg7 Nh4+ 41. gxh4 Rxh4 $19) 39... fxg6 {[%emt 0:00:06][%mdl 4096] Endgame. KQR-KQR} 40. Qf7 {[%emt 0:00:02][%csl LRg6,LRh5] Repels Rh7} (40. Rxh5 {simplifies} gxh5 41. Qf3 Ka7 42. e5) 40... Rh8 {[%emt 0:00:59][%cal Bh5h8,Bh8e8,Be8e5][%mdl 32]} 41. Qxg6 {[%emt 0:18:15][%cal Oe4e5]} Qd7 {[%emt 0:15:28]} 42. Rh5 {[%emt 0:01:49] Inhibits Qh3+. Active counter play!} Re8 {[%emt 0:00:00]} 43. Rh4 {[%emt 0:00:00]} Qc6 {[%emt 0:00:00]} 44. Qf7 {[%emt 0:00:00]} Re5 {[%emt 0:00:00] Prevents Qd5} (44... Rxe4 45. Rxe4 Qxe4+ 46. Qf3 Qxf3+ 47. Kxf3 $18) 45. Rf4 {[%emt 0:00:00]} Kb8 {[%emt 0:00:00]} (45... Rxe4 $2 46. Rxe4 Qxe4+ 47. Qf3 $18) 46. Kf3 {[%emt 0:00:00]} Qc5 {[%emt 0:00:00]} 47. Rf5 {[%emt 0:00:12] Strongly threatening Qg8+.} Qg1 {[%emt 0:00:00]} (47... Qb4 $11) 48. Qg8+ $16 {[%emt 0:00:36]} Ka7 {[%emt 0:00:00] ...Qf1+ is the strong threat.} 49. Rxe5 {[%emt 0:01:25]} Qd1+ {[%emt 0:00:07]} 50. Kg2 $1 {[%emt 0:00:37]} (50. Kf4 dxe5+ 51. Kf5 (51. Kxe5 Qxb3 52. Qf7 Qxg3+ 53. Ke6 Qh3+ 54. Qf5 Qa3 $11) 51... Qxb3 $11) 50... dxe5 $14 {[%emt 0:00:52] KQ-KQ} 51. Qf7 {[%emt 0:00:18]} Qe2+ $2 {[%emt 0:00:34]} ({Black should try} 51... Kb8 $14) 52. Kh3 $18 {[%emt 0:00:15]} Qxe4 {[%emt 0:00:54]} 53. Qxc7+ {[%emt 0:00:07]} Ka6 {[%emt 0:00:42]} 54. Qc8+ {[%emt 0:01:01]} Ka7 {[%emt 0:00:01]} 55. Qd7+ {[%emt 0:00:08]} Kb8 {[%emt 0:00:11]} 56. Qd8+ $2 {[%emt 0:07:43]} (56. Qd6+ $1 $18 Ka7 57. c5 Qh7+ 58. Kg4 Qe4+ 59. Kh5 Qf5+ 60. Kh4 bxc5 61. Qxc5+ Kb8 62. g4 (62. Qxa5 Qh7+ 63. Kg5 Qg7+ 64. Kf5 Qh7+ 65. Ke6 Qg6+ 66. Ke7 Qh7+ 67. Kf6 Qh8+ 68. Kg5 Qg8+ 69. Kf6 Qh8+ 70. Kf7 Qh7+ 71. Ke6 Qg8+ 72. Kf6 Qh8+ $11)) 56... Ka7 $11 {[%emt 0:00:02]} 57. c5 {[%emt 0:00:15]} Qh7+ {[%emt 0:00:50]} 58. Kg4 {[%emt 0:00:23]} Qg6+ {[%emt 0:00:07]} 59. Kf3 {[%emt 0:02:37]} Qc6+ {[%emt 0:00:15]} 60. Ke3 {[%emt 0:00:37]} Qxc5+ {[%emt 0:00:07]} 61. Ke4 {[%emt 0:00:10]} Qb4+ {[%emt 0:03:36]} 62. Kxe5 {[%emt 0:00:06] Hoping for Qd7+.} Qxb3 {[%emt 0:00:51]} 63. Qd7+ {[%emt 0:00:50]} Ka6 {[%emt 0:00:15]} 64. g4 {[%emt 0:00:15][%cal Od7b5,Bg3g4,Bg4g5,Bg5g6,Bg6g7][%mdl 32] Qb5+! would now be deadly.} Qc3+ {[%emt 0:00:51]} 65. Kf5 {[%emt 0:02:09]} Qc5+ {[%emt 0:00:07]} 66. Kf6 {[%emt 0:00:52]} b5 {[%emt 0:00:25]} 67. axb5+ {[%emt 0:00:54]} Qxb5 {[%emt 0:00:09]} 68. Qe6+ {[%emt 0:00:07]} Kb7 {[%emt 0:00:36]} 69. g5 {[%emt 0:00:16] g6 would kill now.} Qb2+ {[%emt 0:01:08]} 70. Kf7 {[%emt 0:01:01] White threatens g6 and mate.} Qf2+ {[%emt 0:01:38]} 71. Ke8 {[%emt 0:00:16] Intending g6 and mate.} Qg3 {[%emt 0:00:44]} 72. g6 {[%emt 0:00:35] Threatening mate with Qf6.} a4 $1 {[%emt 0:00:15]} 73. Qe7+ {[%emt 0:02:44]} Kb6 $2 {[%emt 0:00:37][%mdl 8192]} (73... Ka8 $11) 74. g7 $1 {[%emt 0:00:36]} Qg6+ {[%emt 0:00:09]} 75. Kd8 $1 {[%emt 0:00:28]} Qd3+ {[%emt 0:00:47] [#]} 76. Qd7 $1 {[%emt 0:00:11]} Qc4 {[%emt 0:00:22]} 77. Qd6+ {[%emt 0:00:37]} Kb7 {[%emt 0:00:27] [#]} 78. Qe7+ $1 {[%emt 0:00:22]} Kb6 {[%emt 0:00:50]} 79. Qf6+ {[%emt 0:00:57]} Ka7 {[%emt 0:00:32]} 80. Qe7+ {[%emt 0:00:39]} Kb6 $1 {[%emt 0:00:08][%cal Oa4a3]} 81. Qe3+ {[%emt 0:00:20] White mates.} Ka6 {[%emt 0:00:40]} 82. Ke7 {[%emt 0:00:34]} Qc7+ {[%emt 0:00:44]} 83. Kf6 {[%emt 0:00:24]} Qd8+ {[%emt 0:00:28]} 84. Qe7 {[%emt 0:00:47]} Qd4+ {[%emt 0:00:16]} 85. Kf7 {[%emt 0:00:04] Weighted Error Value: White=0.15 (very precise) /Black=0.16 (very precise) .  Loses game:     	---       	Black=2      Missed win:     	White=1     	---        Mistake:       	White=3     	Black=3      Inaccurate:     	White=1     	Black=6      OK:         	White=29    	Black=32     Best:        	White=7     	Black=6      Strong:       	White=4     	Black=1} 1-0

[Event "CIS Master Groups 2024"]
[Site "Vasto"]
[Date "2024.04.11"]
[Round "6.2"]
[White "Sonis, Francesco"]
[Black "Brunello, Sabino"]
[Result "1/2-1/2"]
[ECO "A06"]
[WhiteElo "2562"]
[BlackElo "2515"]
[Annotator "TA"]
[PlyCount "29"]
[EventDate "2024.04.07"]
[EventType "team-tourn"]
[EventCountry "ITA"]
[SourceTitle "playchess.com"]
[Source "ChessBase"]
[SourceQuality "1"]
[TimeControl "40/5400+30:900+30"]

{[%evp 9,29,10,15,0,-9,10,4,-6,-9,-11,0,0,16,7,9,6,22,-17,0,0,25,-23]} 1. Nf3 {[%emt 0:00:04]} d5 {[%emt 0:00:17]} 2. e3 {[%emt 0:00:06]} c5 {[%emt 0:01:06]} 3. b3 {[%emt 0:00:20]} e6 {[%emt 0:05:01]} 4. Bb2 {[%emt 0:00:21]} Nc6 {[%emt 0:00:06]} 5. Bb5 {[%emt 0:00:04]} Nge7 {[%emt 0:00:03]} 6. Ne5 {[%emt 0:04:03] [#] And now Qh5 would win.} Bd7 {[%emt 0:02:48]} 7. Nxd7 {[%emt 0:01:47]} Qxd7 {[%emt 0:00:02]} 8. d4 {[%emt 0:04:55] The position is equal.} cxd4 {[%emt 0:09:19]} 9. exd4 {[%emt 0:01:18]} Nf5 {[%emt 0:01:01]} 10. c3 {[%emt 0:00:12]} a6 {[%emt 0:05:17]} 11. Bd3 {[%emt 0:00:04]} e5 {[%emt 0:00:11]} 12. dxe5 {[%emt 0:00:06]} Nxe5 {[%emt 0:00:04]} 13. Be2 {[%emt 0:07:43]} O-O-O {[%emt 0:02:06]} 14. Nd2 {[%emt 0:07:56]} h5 {[%emt 0:20:09]} 15. Nf3 {[%emt 0:18:25] Repels Nh4. An uneventful encounter.   Weighted Error Value: White=0.09 (flawless) /Black=0.08 (flawless) .  Mistake:       	White=1     	---        Inaccurate:     	White=1     	---        OK:         	White=4     	Black=2} (15. O-O {should be considered.}) 1/2-1/2

[Event "CIS Master Groups 2024"]
[Site "Vasto"]
[Date "2024.04.11"]
[Round "6.3"]
[White "Dvirnyy, Danyyil"]
[Black "Di Paolo, Raffaele"]
[Result "1-0"]
[ECO "B99"]
[WhiteElo "2480"]
[BlackElo "2290"]
[Annotator "TA"]
[PlyCount "65"]
[EventDate "2024.04.07"]
[EventType "team-tourn"]
[EventCountry "ITA"]
[SourceTitle "playchess.com"]
[Source "ChessBase"]
[SourceQuality "1"]
[TimeControl "40/5400+30:900+30"]

{[%evp 36,65,97,35,41,26,23,29,37,28,35,0,0,3,7,0,0,0,61,65,65,0,35,35,77,80,387,372,358,337,1764,1668]} 1. e4 {[%emt 0:00:04]} c5 {[%emt 0:00:43]} 2. Nf3 {[%emt 0:00:26]} d6 {[%emt 0:00:06]} 3. d4 {[%emt 0:01:56]} cxd4 {[%emt 0:00:07]} 4. Nxd4 {[%emt 0:00:06]} Nf6 {[%emt 0:00:04]} 5. Nc3 {[%emt 0:00:36]} a6 {[%emt 0:00:25]} 6. Bg5 {[%emt 0:06:04]} e6 {[%emt 0:00:11]} 7. f4 {[%emt 0:00:22]} Be7 {[%emt 0:00:46]} 8. Qf3 {[%emt 0:00:16]} Qc7 {[%emt 0:01:22]} 9. O-O-O {[%emt 0:00:18]} Nbd7 {[%emt 0:00:37]} 10. g4 {[%emt 0:04:17]} b5 {[%emt 0:03:57]} 11. Bxf6 {[%emt 0:00:10]} Nxf6 {[%emt 0:02:20]} 12. g5 {[%emt 0:01:09]} Nd7 {[%emt 0:00:08]} 13. f5 {[%emt 0:00:08]} Bxg5+ {[%emt 0:01:23]} 14. Kb1 {[%emt 0:00:06]} Ne5 {[%emt 0:02:08]} 15. Qh5 {[%emt 0:00:29]} Qe7 {[%emt 0:04:51]} 16. Nxe6 {[%emt 0:05:48]} Bxe6 {[%emt 0:07:56]} 17. fxe6 {[%emt 0:00:11]} g6 {[%emt 0:01:48]} 18. exf7+ {[%emt 0:00:22]} Kxf7 {[%emt 0:00:14]} 19. Qe2 {[%emt 0:02:00]} (19. Qh3 $16) 19... Kg7 $14 {[%emt 0:02:52]} 20. Nd5 {[%emt 0:15:06]} Qd8 {[%emt 0:01:15]} 21. Qe1 {[%emt 0:10:43]} Bh4 {[%emt 0:17:39] White has an edge.} 22. Qc3 {[%emt 0:04:39]} Ra7 {[%emt 0:10:53] Repels Nc7} 23. Bh3 {[%emt 0:09:19]} (23. Nb4 {simplifies} Qc8 24. Qxc8 Rxc8 25. Rxd6 a5 26. Nd5) 23... Rf8 {[%emt 0:03:07] Prevents Nf4} 24. Rhf1 {[%emt 0:01:22]} Raf7 {[%emt 0:01:17] Against Nf4} 25. Rxf7+ {[%emt 0:03:32]} Rxf7 {[%emt 0:00:25]} 26. a3 {[%emt 0:01:03]} Bf6 {[%emt 0:11:48]} (26... Rf3 $11 27. Qc8 Kh6) 27. Nf4 $36 {[%emt 0:03:54][%mdl 2048] [#] Strongly threatening Ne6+. White is more active. White has more active pieces.} Kh8 {[%emt 0:04:06]} 28. Ne6 {[%emt 0:00:10]} ({White should play} 28. Be6 $14 Rc7 29. Qg3) 28... Qb8 {[%emt 0:00:20]} (28... Qe8 $5) 29. Rf1 {[%emt 0:01:53]} Qb7 {[%emt 0:02:52][%cal Oh7h6]} 30. Qd4 {[%emt 0:02:56][%cal Of1f6] And now Rxf6! would win.} h6 $2 {[%emt 0:04:38][%mdl 8192] [#]} (30... Qb8 $16) 31. Rxf6 $1 $18 {[%emt 0:05:09][%mdl 512]} Rxf6 {[%emt 0:00:48]} 32. Qxd6 {[%emt 0:00:05]} Nd7 $2 {[%emt 0:15:24]} (32... Nc6 33. e5 Rxe6 34. Bxe6 (34. Qxe6 Nd4 $18) 34... Ne7) 33. Qe7 {[%emt 0:22:21] Weighted Error Value: White=0.14 (very precise) /Black=0.39.  Loses game:     	---       	Black=1      Mistake:       	White=1     	Black=2      Inaccurate:     	White=1     	Black=2      OK:         	White=5     	Black=5      Best:        	White=1     	---        Brilliant:      	White=1     	---} 1-0

[Event "CIS Master Groups 2024"]
[Site "Vasto"]
[Date "2024.04.11"]
[Round "6.4"]
[White "Maldonado Gonzales, Stefano"]
[Black "Gilevych, Artem"]
[Result "0-1"]
[ECO "C15"]
[WhiteElo "2218"]
[BlackElo "2417"]
[Annotator "TA"]
[PlyCount "82"]
[EventDate "2024.04.07"]
[EventType "team-tourn"]
[EventCountry "ITA"]
[SourceTitle "playchess.com"]
[Source "ChessBase"]
[SourceQuality "1"]
[TimeControl "40/5400+30:900+30"]

{[%evp 12,82,11,22,23,18,14,16,17,0,12,-52,-54,-39,-36,-41,-44,-56,-59,-55,-62,-68,-34,-135,-119,-118,-118,-110,-112,-110,-114,-119,-118,-124,-118,-134,-120,-132,-131,-141,-137,-141,-115,-111,-122,-143,-152,-139,-142,-141,-131,-155,-162,-183,-170,-213,-213,-212,-215,-219,-208,-214,-222,-284,-298,-411,-416,-553,-574,-517,-504,-925,-885]} 1. e4 {[%emt 0:00:01]} e6 {[%emt 0:00:13]} 2. d4 {[%emt 0:00:04]} d5 {[%emt 0:00:04]} 3. Nc3 {[%emt 0:00:08]} Bb4 {[%emt 0:00:06]} 4. Nge2 {[%emt 0:00:04]} Nf6 {[%emt 0:03:18]} 5. e5 {[%emt 0:00:36]} Nfd7 {[%emt 0:00:53]} 6. a3 {[%emt 0:00:07]} Be7 {[%emt 0:00:20]} 7. f4 {[%emt 0:01:07]} c5 {[%emt 0:03:34]} 8. Be3 {[%emt 0:00:04]} Nc6 {[%emt 0:01:22]} 9. dxc5 {[%emt 0:01:02]} Bxc5 {[%emt 0:04:42] The position is equal.} 10. Nd4 {[%emt 0:10:44]} Qe7 {[%emt 0:15:22][%cal Od7e5]} 11. Na4 {[%emt 0:09:26]} (11. Qd2 $11) 11... Bxd4 $15 {[%emt 0:09:03]} 12. Bxd4 {[%emt 0:00:05] [#]} Ndxe5 $1 {[%emt 0:11:17]} 13. Bb5 {[%emt 0:25:19]} Nd7 {[%emt 0:04:48]} 14. O-O {[%emt 0:00:11]} Nxd4 {[%emt 0:01:29]} 15. Qxd4 {[%emt 0:00:04]} O-O {[%emt 0:02:32]} 16. f5 {[%emt 0:04:03]} exf5 {[%emt 0:07:56]} 17. Qxd5 {[%emt 0:06:19]} ({White should play} 17. Rxf5 $15 Nf6 18. Re5) 17... Nf6 {[%emt 0:01:07]} 18. Qc5 {[%emt 0:04:55]} Qxc5+ {[%emt 0:02:04]} 19. Nxc5 {[%emt 0:00:02]} b6 {[%emt 0:03:10]} 20. Bc6 {[%emt 0:02:04]} Rb8 {[%emt 0:01:25]} 21. Nb3 {[%emt 0:00:04]} g6 {[%emt 0:01:40]} 22. Rfe1 {[%emt 0:00:38]} Bb7 {[%emt 0:01:58]} 23. Nd4 {[%emt 0:03:22]} Rfc8 {[%emt 0:03:00]} 24. Bxb7 {[%emt 0:01:41]} Rxb7 {[%emt 0:00:02]} 25. c3 {[%emt 0:01:11]} Rd7 {[%emt 0:00:54]} 26. h3 {[%emt 0:05:06]} Ne4 {[%emt 0:03:44]} 27. g4 {[%emt 0:01:26]} Ng5 $36 {[%emt 0:00:54][%mdl 2048] Black has strong initiative.} 28. gxf5 {[%emt 0:03:47]} Nxh3+ {[%emt 0:00:45]} 29. Kh2 {[%emt 0:00:32]} Nf4 {[%emt 0:01:25]} 30. fxg6 {[%emt 0:00:12]} hxg6 {[%emt 0:00:38]} 31. Rad1 {[%emt 0:02:33]} Rcd8 {[%emt 0:01:39][%cal Of4e6]} 32. Rb1 {[%emt 0:03:50]} Kg7 {[%emt 0:01:17]} 33. Re4 {[%emt 0:00:30]} Rh8+ {[%emt 0:03:14]} 34. Kg1 {[%emt 0:01:19]} Nh3+ {[%emt 0:03:44]} 35. Kg2 {[%emt 0:00:04]} f5 {[%emt 0:01:05]} 36. Re3 {[%emt 0:02:58]} Ng5 {[%emt 0:00:23]} 37. Rd1 {[%emt 0:04:27][%cal Od4f5] [#] And now Nxf5+! would win.} Kf6 {[%emt 0:00:59] ...Rdh7 would now be deadly.} 38. Rf1 {[%emt 0:00:28]} Rdh7 {[%emt 0:01:00]} 39. Ne2 {[%emt 0:04:12]} Rh2+ {[%emt 0:02:18] Black is clearly winning.} 40. Kg1 {[%emt 0:00:04]} Ne4 {[%emt 0:02:08] ( -> ...Rh1+)} 41. Rxe4 {[%emt 0:20:34]} (41. Ng3 $142 Nxg3 42. Rxg3) 41... Rh1+ {[%emt 0:15:18] White did not feel at home in the position after the opening.   Weighted Error Value: White=0.39/Black=0.04 (flawless) .  Mistake:       	White=3     	---        Inaccurate:     	White=2     	Black=1      OK:         	White=11    	Black=19     Best:        	White=3     	Black=4      Brilliant:      	---       	Black=1} 0-1

[Event "CIS Master Groups 2024"]
[Site "Vasto"]
[Date "2024.04.11"]
[Round "6.5"]
[White "Jianu, Vlad-Cristian"]
[Black "Fier, Alexandr"]
[Result "1/2-1/2"]
[ECO "E05"]
[WhiteElo "2491"]
[BlackElo "2566"]
[Annotator "TA"]
[PlyCount "25"]
[EventDate "2024.04.07"]
[EventType "team-tourn"]
[EventCountry "ITA"]
[SourceTitle "playchess.com"]
[Source "ChessBase"]
[SourceQuality "1"]
[TimeControl "40/5400+30:900+30"]

{[%evp 13,25,15,12,6,31,20,31,15,14,6,10,22,12,19]} 1. d4 {[%emt 0:00:03]} Nf6 {[%emt 0:00:08]} 2. Nf3 {[%emt 0:00:09]} e6 {[%emt 0:00:04]} 3. g3 {[%emt 0:00:19]} d5 {[%emt 0:02:45][%cal Bd7d5,Bd5c4][%mdl 32]} 4. Bg2 {[%emt 0:00:37]} Be7 {[%emt 0:00:05]} 5. O-O {[%emt 0:00:15]} O-O {[%emt 0:00:03]} 6. c4 {[%emt 0:00:06]} dxc4 {[%emt 0:00:04]} 7. Qc2 {[%emt 0:00:04]} b5 {[%emt 0:00:41]} 8. a4 {[%emt 0:00:11]} Bb7 {[%emt 0:00:04]} (8... b4 {is interesting.} 9. Ne5 Qxd4 10. Nd2 b3) 9. axb5 {[%emt 0:00:11]} a6 {[%emt 0:00:06]} 10. bxa6 {[%emt 0:00:59]} (10. Qxc4 $2 {perishes.} axb5 11. Qxb5 Bc6 (11... Rxa1 $2 12. Qxb7 Rxb1 13. Qa8 $19) 12. Rxa8 Bxb5 $19) 10... Nxa6 {[%emt 0:00:08] The position is equal.} 11. Qxc4 {[%emt 0:01:07]} Bd5 {[%emt 0:00:07]} 12. Qc3 {[%emt 0:04:01]} c5 {[%emt 0:12:11]} 13. Be3 {[%emt 0:00:26] Not much happened in this game.   Weighted Error Value: White=0.06 (flawless) /Black=0.05 (flawless) .  OK:         	White=1     	Black=3      Best:        	White=1     	---} 1/2-1/2